lending/lending_fUSD_20240112
["ID","MTS","AMOUNT","RATE_DAILY","PERIOD"]
[311402923,1705077112272,-500.0,0.00025252,2]
[311402924,1705077112282,-500.0,0.00025252,2]
[311402925,1705077112292,-605.4,0.00025252,2]
[311402926,1705077112302,-500.0,0.00025254,2]
[311402927,1705077112311,-500.0,0.00025254,2]
[311402928,1705077112321,-150.0,0.00025387,2]
[311402929,1705077112331,-153.88,0.00025434,2]
[311402930,1705077112341,-1157.52,0.00025446,2]
[311402931,1705077112351,-4839.9676549,0.00025506,2]
[311402932,1705077112360,-313.6606734,0.00025507,2]
[311402933,1705077112370,-95052.1544754,0.00025507,2]
[311402934,1705077112379,-5793.0630888,0.00025509,2]
[311402935,1705077112388,-625.39,0.00025519,2]
[311402936,1705077112398,-1429.49,0.0002552,2]
[311402937,1705077112407,-9945.1,0.0002552,2]
[311402938,1705077112417,-978.78,0.0002552,2]
[311402939,1705077112426,-1378.24,0.0002552,2]
[311402940,1705077112435,-867.37,0.0002552,2]
[311402941,1705077112445,-576.62,0.0002552,2]
[311402942,1705077112455,-1895.37,0.0002552,2]
[311402943,1705077112465,-741.66,0.0002552,2]
[311402944,1705077112474,-594.56,0.0002552,2]
[311402945,1705077112490,-28063.97,0.0002552,2]
[311402946,1705077112500,-372.25118729,0.0002552,2]
[311402947,1705077112510,-1179.37,0.0002552,2]
[311402948,1705077112519,-1161.83,0.0002552,2]
[311402949,1705077112533,-16126.91,0.0002552,2]
[311402950,1705077112543,-5776.69,0.0002552,2]
[311402951,1705077112552,-854.65,0.0002552,2]
[311402952,1705077112562,-788.93,0.0002552,2]
[311402953,1705077112572,-500.0,0.0002552,2]
[311402954,1705077112581,-846.93,0.0002552,2]
[311402955,1705077112591,-500.0,0.0002552,2]
[311402956,1705077112600,-2347.67,0.0002552,2]
[311402957,1705077112610,-944.74,0.0002552,2]
[311402958,1705077112620,-556.66,0.0002552,2]
[311402959,1705077112629,-915.17,0.0002552,2]
[311402960,1705077112639,-801.65,0.0002552,2]
[311402961,1705077112649,-11316.9,0.0002552,2]
[311402962,1705077112658,-1188.34,0.0002552,2]
[311402963,1705077112667,-1285.67,0.0002552,2]
[311402964,1705077112677,-520.06,0.0002552,2]
[311402965,1705077112686,-1592.48,0.0002552,2]
[311402966,1705077112695,-575.88,0.0002552,2]
[311402967,1705077112707,-1869.56,0.0002552,2]
[311402968,1705077112718,-1025.29,0.0002552,2]
[311402969,1705077112727,-765.07,0.0002552,2]
[311402970,1705077112736,-1932.17,0.0002552,2]
[311402971,1705077112745,-500.0,0.0002552,2]
[311402972,1705077112754,-825.06,0.0002552,2]
[311402973,1705077112763,-1309.88,0.0002552,2]
[311402974,1705077112774,-500.0,0.00025522,2]
[311402975,1705077112783,-1331.39,0.00025522,2]
[311402976,1705077112793,-1601.07,0.00025522,2]
[311402977,1705077112802,-1448.76,0.00025522,5]
[311402978,1705077112812,-553.23,0.00025522,2]
[311402979,1705077112822,-6027.14,0.00025522,2]
[311402980,1705077112832,-8057.22,0.00025522,2]
[311402981,1705077112842,-2024.92,0.00025522,2]
[311402982,1705077112852,-839.27,0.00025522,2]
[311402983,1705077112861,-1398.26,0.00025522,2]
[311402984,1705077112871,-4395.36,0.00025522,2]
[311402985,1705077112882,-150.0,0.00025522,2]
[311402986,1705077112892,-791.14,0.00025522,2]
[311402987,1705077112902,-500.0,0.00025523,2]
[311402988,1705077112912,-500.0,0.00025523,2]
[311402989,1705077112922,-976.62,0.00025523,2]
[311402990,1705077112932,-937.67,0.00025523,2]
[311402991,1705077112942,-500.0,0.00025523,2]
[311402992,1705077112954,-500.0,0.00025523,2]
[311402993,1705077112964,-500.0,0.00025523,2]
[311402994,1705077112973,-500.0,0.00025523,2]
[311402995,1705077112983,-500.0,0.00025523,2]
[311402996,1705077112991,-500.0,0.00025523,2]
[311402997,1705077113000,-500.0,0.00025523,2]
[311402998,1705077113009,-500.0,0.00025523,2]
[311402999,1705077113018,-500.0,0.00025523,2]
[311403000,1705077113026,-500.0,0.00025523,2]
[311403001,1705077113036,-500.0,0.00025523,2]
[311403002,1705077113046,-338.95767085,0.00025523,2]
[311403003,1705077113056,-500.0,0.00025523,2]
[311403004,1705077113066,-1107.53,0.00025523,2]
[311403005,1705077113075,-608.63,0.00025523,2]
[311403006,1705077113084,-575.57256878,0.00025523,2]
[311403007,1705077113094,-500.0,0.00025523,2]
[311403008,1705077113105,-500.0,0.00025523,2]
[311403009,1705077113114,-500.0,0.00025523,2]
[311403010,1705077113125,-565.8,0.00025523,2]
[311403011,1705077113134,-330.32746771,0.00025523,2]
[311403012,1705077113144,-500.0,0.00025523,2]
[311403013,1705077113153,-500.0,0.00025523,2]
[311403014,1705077113163,-523.56,0.00025523,2]
[311403015,1705077113172,-594.07,0.00025523,2]
[311403016,1705077113182,-1120.5,0.00025523,2]
[311403017,1705077113191,-571.6,0.00025523,2]
[311403018,1705077113202,-393.2926095,0.00025523,2]
[311403019,1705077113212,-388.7,0.00025523,2]
[311403020,1705077113221,-500.0,0.00025523,2]
[311403021,1705077113233,-500.0,0.00025523,2]
[311403022,1705077113243,-500.0,0.00025523,2]
[311403023,1705077113253,-992.52,0.00025523,2]
[311403024,1705077113263,-605.97,0.00025523,2]
[311403025,1705077113272,-1474.92,0.00025523,2]
[311403026,1705077113282,-4177.28,0.00025523,2]
[311403027,1705077113291,-568.20696139,0.00025523,2]
[311403028,1705077113300,-347.88412456,0.00025523,2]
[311403029,1705077113311,-1872.87,0.00025523,2]
[311403030,1705077113320,-500.0,0.00025523,2]
[311403031,1705077113330,-10644.17,0.00025523,2]
[311403032,1705077113339,-1357.01,0.00025523,2]
[311403033,1705077113348,-500.0,0.00025523,2]
[311403034,1705077113357,-150.0,0.00025523,2]
[311403035,1705077113366,-500.0,0.00025523,2]
[311403036,1705077113376,-522.62949223,0.00025523,2]
[311403037,1705077113386,-500.0,0.00025523,2]
[311403038,1705077113395,-4961.7,0.00025523,2]
[311403039,1705077113405,-933.63,0.00025523,2]
[311403040,1705077113414,-500.0,0.00025523,2]
[311403041,1705077113424,-620.82128168,0.00025523,2]
[311403042,1705077113433,-636.31,0.00025523,2]
[311403043,1705077113443,-500.0,0.00025523,2]
[311403044,1705077113455,-500.0,0.00025523,2]
[311403045,1705077113465,-1195.27,0.00025523,2]
[311403046,1705077113475,-1808.5,0.00025523,2]
[311403047,1705077113485,-1852.8,0.00025523,2]
[311403048,1705077113495,-3071.92,0.00025523,2]
[311403049,1705077113505,-2545.58,0.00025523,2]
[311403050,1705077113515,-500.0,0.00025523,2]
[311403051,1705077113525,-500.0,0.00025523,2]
[311403052,1705077113536,-2126.07,0.00025523,2]
[311403053,1705077113545,-877.7,0.00025523,2]
[311403054,1705077113557,-500.0,0.00025523,2]
[311403055,1705077113567,-1558.28,0.00025523,2]
[311403056,1705077113577,-3767.3,0.00025523,2]
[311403057,1705077113588,-1845.89,0.00025523,2]
[311403058,1705077113599,-669.67,0.00025523,2]
[311403059,1705077113609,-2228.6,0.00025523,2]
[311403060,1705077113619,-500.0,0.00025523,2]
[311403061,1705077113629,-846.0,0.00025523,2]
[311403062,1705077113640,-2416.09,0.00025523,2]
[311403063,1705077113649,-13698.75,0.00025523,2]
[311403064,1705077113658,-1205.25,0.00025523,2]
[311403065,1705077113667,-3731.97,0.00025523,2]
[311403066,1705077113677,-500.0,0.00025523,2]
[311403067,1705077113686,-812.57,0.00025523,2]
[311403068,1705077113696,-500.0,0.00025523,2]
[311403069,1705077113714,-500.0,0.00025523,2]
[311403070,1705077113723,-2269.52,0.00025523,2]
[311403071,1705077113733,-500.0,0.00025523,2]
[311403072,1705077113744,-1615.37,0.00025523,2]
[311403073,1705077113754,-500.0,0.00025523,2]
[311403074,1705077113764,-946.07,0.00025523,2]
[311403075,1705077113774,-500.0,0.00025523,2]
[311403076,1705077113784,-636.34,0.00025523,2]
[311403077,1705077113793,-500.0,0.00025523,2]
[311403078,1705077113803,-656.56,0.00025523,2]
[311403079,1705077113813,-500.0,0.00025524,2]
[311403080,1705077113823,-304.70163891,0.00025524,2]
[311403081,1705077113833,-500.0,0.00025524,2]
[311403082,1705077113843,-500.0,0.00025524,2]
[311403083,1705077113852,-212.54238492,0.00025524,2]
[311403084,1705077113862,-600.96,0.00025524,2]
[311403085,1705077113871,-500.0,0.00025524,2]
[311403086,1705077113881,-500.0,0.00025524,2]
[311403087,1705077113890,-500.0,0.00025524,2]
[311403088,1705077113899,-500.0,0.00025524,2]
[311403089,1705077113910,-571.62,0.00025524,2]
[311403090,1705077113919,-500.0,0.00025524,2]
[311403091,1705077113928,-500.0,0.00025524,2]
[311403092,1705077113938,-1417.94,0.00025524,2]
[311403093,1705077113952,-500.0,0.00025524,2]
[311403094,1705077113962,-348.03999452,0.00025524,2]
[311403095,1705077113971,-965.53,0.00025524,2]
[311403096,1705077113981,-2036.95,0.00025524,2]
[311403097,1705077113990,-500.0,0.00025524,2]
[311403098,1705077114000,-500.0,0.00025524,2]
[311403099,1705077114009,-571.2464921,0.00025524,2]
[311403100,1705077114018,-235.59897796,0.00025524,2]
[311403101,1705077114028,-500.0,0.00025524,2]
[311403102,1705077114038,-500.0,0.00025524,2]
[311403103,1705077114049,-500.0,0.00025524,2]
[311403104,1705077114058,-2001.96,0.00025524,2]
[311403105,1705077114067,-594.21,0.00025524,2]
[311403106,1705077114077,-683.21,0.00025524,2]
[311403107,1705077114086,-565.97,0.00025524,2]
[311403108,1705077114096,-500.0,0.00025524,2]
[311403109,1705077114105,-511.84,0.00025524,2]
[311403110,1705077114116,-1545.91,0.00025524,2]
[311403111,1705077114126,-1125.76,0.00025524,2]
[311403112,1705077114135,-806.95,0.00025524,2]
[311403113,1705077114145,-1118.05,0.00025524,2]
[311403114,1705077114154,-806.37,0.00025524,2]
[311403115,1705077114163,-4705.31,0.00025524,2]
[311403116,1705077114172,-4838.78,0.00025524,2]
[311403117,1705077114181,-973.61,0.00025524,2]
[311403118,1705077114191,-500.0,0.00025524,2]
[311403119,1705077114203,-3717.14,0.00025524,2]
[311403120,1705077114213,-964.46,0.00025524,2]
[311403121,1705077114224,-500.0,0.00025524,2]
[311403122,1705077114233,-500.0,0.00025524,2]
[311403123,1705077114242,-500.0,0.00025524,2]
[311403124,1705077114251,-628.62,0.00025524,2]
[311403125,1705077114262,-508.58,0.00025524,2]
[311403126,1705077114271,-1093.02,0.00025524,2]
[311403127,1705077114280,-2444.08,0.00025524,2]
[311403128,1705077114289,-1131.66,0.00025524,2]
[311403129,1705077114298,-829.37,0.00025524,2]
[311403130,1705077114307,-1941.71,0.00025524,2]
[311403131,1705077114317,-923.95,0.00025524,2]
[311403132,1705077114326,-500.0,0.00025524,2]
[311403133,1705077114336,-693.03,0.00025524,2]
[311403134,1705077114345,-2777.7,0.00025524,2]
[311403135,1705077114355,-546.11,0.00025524,2]
[311403136,1705077114365,-500.0,0.00025524,2]
[311403137,1705077114375,-1599.45,0.00025524,2]
[311403138,1705077114385,-500.0,0.00025524,2]
[311403139,1705077114394,-533.41,0.00025524,2]
[311403140,1705077114404,-500.0,0.00025524,2]
[311403141,1705077114414,-362.5669301,0.00025524,2]
[311403142,1705077114687,-303.4830699,0.00025524,2]
[311403143,1705077114697,-775.82,0.00025524,2]
[311403144,1705077114708,-1275.61,0.00025524,2]
[311403145,1705077114718,-500.0,0.00025524,2]
[311403146,1705077114727,-723.72,0.00025524,2]
[311403147,1705077114737,-1101.03,0.00025524,2]
[311403148,1705077114746,-500.0,0.00025524,2]
[311403149,1705077114755,-2377.81,0.00025524,2]
[311403150,1705077114765,-1960.6,0.00025524,2]
[311403151,1705077114774,-612.39,0.00025524,2]
[311403152,1705077114784,-500.0,0.00025524,2]
[311403153,1705077114793,-500.0,0.00025524,2]
[311403154,1705077114803,-4932.76,0.00025524,2]
[311403155,1705077114813,-500.0,0.00025524,2]
[311403156,1705077114823,-500.0,0.00025524,2]
[311403157,1705077114832,-555.03,0.00025524,2]
[311403158,1705077114842,-2035.38,0.00025524,2]
[311403159,1705077114853,-500.0,0.00025524,2]
[311403160,1705077114863,-500.0,0.00025524,2]
[311403161,1705077114873,-393.38002369,0.00025524,2]
[311403162,1705077114883,-595.74,0.00025524,2]
[311403163,1705077114893,-500.0,0.00025524,2]
[311403164,1705077114903,-1056.92,0.00025524,2]
[311403165,1705077114913,-541.9,0.00025524,5]
[311403166,1705077114923,-500.0,0.00025524,2]
[311403167,1705077114933,-500.0,0.00025525,2]
[311403168,1705077114943,-500.0,0.00025525,2]
[311403169,1705077114955,-519.46,0.00025525,2]
[311403170,1705077114965,-516.68,0.00025525,2]
[311403171,1705077114974,-1080.77,0.00025525,2]
[311403172,1705077114984,-549.16,0.00025525,2]
[311403173,1705077114994,-219.33453284,0.00025525,2]
[311403174,1705077115004,-710.97,0.00025525,2]
[311403175,1705077115013,-535.78548618,0.00025525,2]
[311403176,1705077115024,-1121.79,0.00025525,2]
[311403177,1705077115033,-500.0,0.00025525,2]
[311403178,1705077115044,-629.57188354,0.00025525,2]
[311403179,1705077115053,-500.0,0.00025525,2]
[311403180,1705077115063,-500.0,0.00025525,2]
[311403181,1705077115074,-520.35285299,0.00025525,2]
[311403182,1705077115084,-625.58,0.00025525,2]
[311403183,1705077115094,-500.0,0.00025525,2]
[311403184,1705077115104,-500.0,0.00025525,2]
[311403185,1705077115113,-500.0,0.00025525,2]
[311403186,1705077115124,-500.0,0.00025525,2]
[311403187,1705077115135,-616.43,0.00025525,2]
[311403188,1705077115145,-719.05,0.00025525,2]
[311403189,1705077115155,-500.0,0.00025525,2]
[311403190,1705077115165,-516.26392089,0.00025525,2]
[311403191,1705077115175,-604.24,0.00025525,2]
[311403192,1705077115185,-500.0,0.00025525,2]
[311403193,1705077115195,-533.68189608,0.00025525,2]
[311403194,1705077115209,-790.24,0.00025525,2]
[311403195,1705077115220,-700.63,0.00025525,2]
[311403196,1705077115230,-500.0,0.00025525,2]
[311403197,1705077115240,-1719.73,0.00025525,2]
[311403198,1705077115251,-602.83708626,0.00025525,2]
[311403199,1705077115262,-986.0,0.00025525,2]
[311403200,1705077115272,-711.04,0.00025525,2]
[311403201,1705077115283,-506.08,0.00025525,2]
[311403202,1705077115293,-1746.57,0.00025525,2]
[311403203,1705077115303,-1020.11,0.00025525,2]
[311403204,1705077115313,-777.31,0.00025525,2]
[311403205,1705077115324,-511.02,0.00025525,2]
[311403206,1705077115334,-2304.2,0.00025525,2]
[311403207,1705077115344,-500.0,0.00025525,2]
[311403208,1705077115354,-2513.79,0.00025525,2]
[311403209,1705077115364,-1000.0,0.00025525,2]
[311403210,1705077115374,-708.84,0.00025525,2]
[311403211,1705077115384,-500.0,0.00025525,2]
[311403212,1705077115394,-500.0,0.00025526,2]
[311403213,1705077115403,-741.19,0.00025526,2]
[311403214,1705077115413,-500.0,0.00025526,2]
[311403215,1705077115424,-666.1,0.00025526,2]
[311403216,1705077115434,-393.4802506,0.00025526,2]
[311403217,1705077115444,-500.0,0.00025526,2]
[311403218,1705077115455,-500.0,0.00025526,2]
[311403219,1705077115465,-500.0,0.00025526,2]
[311403220,1705077115475,-500.0,0.00025526,2]
[311403221,1705077115485,-500.0,0.00025526,2]
[311403222,1705077115495,-671.18,0.00025526,2]
[311403223,1705077115504,-232.88895701,0.00025526,2]
[311403224,1705077115516,-500.0,0.00025526,2]
[311403225,1705077115526,-500.0,0.00025526,2]
[311403226,1705077115535,-599.35,0.00025526,2]
[311403227,1705077115545,-500.0,0.00025526,2]
[311403228,1705077115555,-500.0,0.00025526,2]
[311403229,1705077115564,-500.0,0.00025526,2]
[311403230,1705077115574,-1194.85,0.00025526,2]
[311403231,1705077115583,-500.0,0.00025526,2]
[311403232,1705077115593,-835.11,0.00025526,2]
[311403233,1705077115603,-500.0,0.00025526,2]
[311403234,1705077115613,-278.59488282,0.00025526,2]
[311403235,1705077115623,-500.0,0.00025526,2]
[311403236,1705077115633,-910.05,0.00025526,2]
[311403237,1705077115643,-500.0,0.00025526,2]
[311403238,1705077115653,-772.68,0.00025526,2]
[311403239,1705077115662,-500.0,0.00025526,2]
[311403240,1705077115672,-500.0,0.00025526,2]
[311403241,1705077115681,-500.0,0.00025526,2]
[311403242,1705077115692,-758.57,0.00025526,2]
[311403243,1705077115706,-500.0,0.00025526,2]
[311403244,1705077115716,-747.06,0.00025526,2]
[311403245,1705077115726,-500.0,0.00025526,2]
[311403246,1705077115737,-500.0,0.00025526,2]
[311403247,1705077115747,-500.0,0.00025526,2]
[311403248,1705077115757,-500.0,0.00025526,2]
[311403249,1705077115768,-500.0,0.00025526,2]
[311403250,1705077115778,-346.3620769,0.00025526,2]
[311403251,1705077115788,-1049.62,0.00025526,2]
[311403252,1705077115798,-500.0,0.00025526,2]
[311403253,1705077115807,-500.0,0.00025526,2]
[311403254,1705077115817,-500.0,0.00025526,2]
[311403255,1705077115827,-500.0,0.00025526,2]
[311403256,1705077115837,-500.0,0.00025526,2]
[311403257,1705077115847,-557.71691204,0.00025526,2]
[311403258,1705077115857,-521.68891175,0.00025526,2]
[311403259,1705077115868,-500.0,0.00025526,2]
[311403260,1705077115878,-500.0,0.00025526,2]
[311403261,1705077115888,-500.0,0.00025526,2]
[311403262,1705077115898,-1085.86,0.00025526,2]
[311403263,1705077115908,-767.7,0.00025526,2]
[311403264,1705077115918,-515.51,0.00025526,2]
[311403265,1705077115928,-500.0,0.00025526,2]
[311403266,1705077115937,-500.0,0.00025526,2]
[311403267,1705077115948,-500.0,0.00025526,2]
[311403268,1705077115960,-500.0,0.00025526,2]
[311403269,1705077115971,-500.0,0.00025526,2]
[311403270,1705077115981,-678.28,0.00025526,2]
[311403271,1705077115991,-500.0,0.00025526,2]
[311403272,1705077116001,-500.0,0.00025526,2]
[311403273,1705077116011,-3039.1,0.00025526,2]
[311403274,1705077116021,-676.63,0.00025526,2]
[311403275,1705077116031,-500.0,0.00025526,2]
[311403276,1705077116041,-500.0,0.00025526,2]
[311403277,1705077116051,-500.0,0.00025526,2]
[311403278,1705077116061,-500.0,0.00025526,2]
[311403279,1705077116071,-902.95,0.00025526,2]
[311403280,1705077116081,-466.25218921,0.00025526,2]
[311403281,1705077116091,-500.0,0.00025526,2]
[311403282,1705077116101,-500.0,0.00025526,2]
[311403283,1705077116111,-605.4,0.00025526,2]
[311403284,1705077116121,-500.0,0.00025528,2]
[311403285,1705077116131,-500.0,0.00025528,2]
[311403286,1705077116141,-300.0,0.00025631,2]
[311403287,1705077116151,-153.88,0.0002569,2]
[311403288,1705077116160,-625.39,0.00025793,2]
[311403289,1705077116170,-1429.49,0.00025794,2]
[311403290,1705077116180,-9945.1,0.00025794,2]
[311403291,1705077116190,-978.78,0.00025794,2]
[311403292,1705077116388,-1378.24,0.00025794,2]
[311403293,1705077116399,-867.37,0.00025794,2]
[311403294,1705077116410,-576.62,0.00025794,2]
[311403295,1705077116420,-1895.37,0.00025794,2]
[311403296,1705077116429,-741.66,0.00025794,2]
[311403297,1705077116439,-594.56,0.00025794,2]
[311403298,1705077116451,-28063.97,0.00025794,2]
[311403299,1705077116463,-1179.37,0.00025794,2]
[311403300,1705077116474,-1161.83,0.00025794,2]
[311403301,1705077116484,-16126.91,0.00025794,2]
[311403302,1705077116494,-5776.69,0.00025794,2]
[311403303,1705077116504,-854.65,0.00025794,2]
[311403304,1705077116514,-788.93,0.00025794,2]
[311403305,1705077116524,-500.0,0.00025794,2]
[311403306,1705077116536,-846.93,0.00025794,2]
[311403307,1705077116546,-500.0,0.00025794,2]
[311403308,1705077116556,-2347.67,0.00025794,2]
[311403309,1705077116567,-944.74,0.00025794,2]
[311403310,1705077116576,-556.66,0.00025794,2]
[311403311,1705077116586,-915.17,0.00025794,2]
[311403312,1705077116595,-801.65,0.00025794,2]
[311403313,1705077116606,-11316.9,0.00025794,2]
[311403314,1705077116615,-1188.34,0.00025794,2]
[311403315,1705077116625,-1285.67,0.00025794,2]
[311403316,1705077116634,-520.06,0.00025794,2]
[311403317,1705077116643,-1592.48,0.00025794,2]
[311403318,1705077116653,-575.88,0.00025794,2]
[311403319,1705077116662,-1869.56,0.00025794,2]
[311403320,1705077116672,-1025.29,0.00025794,2]
[311403321,1705077116682,-765.07,0.00025794,2]
[311403322,1705077116691,-1932.17,0.00025794,2]
[311403323,1705077116702,-500.0,0.00025794,2]
[311403324,1705077116712,-825.06,0.00025794,2]
[311403325,1705077116722,-1309.88,0.00025794,2]
[311403326,1705077116733,-500.0,0.00025796,2]
[311403327,1705077116743,-1331.39,0.00025796,2]
[311403328,1705077116753,-1601.07,0.00025796,2]
[311403329,1705077116763,-1448.76,0.00025796,5]
[311403330,1705077116773,-553.23,0.00025796,2]
[311403331,1705077116782,-6027.14,0.00025796,2]
[311403332,1705077116792,-8057.22,0.00025796,2]
[311403333,1705077116801,-2024.92,0.00025796,2]
[311403334,1705077116810,-839.27,0.00025796,2]
[311403335,1705077116819,-1398.26,0.00025796,2]
[311403336,1705077116829,-4395.36,0.00025796,2]
[311403337,1705077116840,-791.14,0.00025796,2]
[311403338,1705077116850,-500.0,0.00025797,2]
[311403339,1705077116860,-976.62,0.00025797,2]
[311403340,1705077116871,-500.0,0.00025797,2]
[311403341,1705077116880,-937.67,0.00025797,2]
[311403342,1705077116889,-500.0,0.00025797,2]
[311403343,1705077116898,-500.0,0.00025797,2]
[311403344,1705077116908,-333.72644094,0.00025797,2]
[311403345,1705077116916,-500.0,0.00025797,2]
[311403346,1705077116927,-500.0,0.00025797,2]
[311403347,1705077116937,-500.0,0.00025797,2]
[311403348,1705077116946,-500.0,0.00025797,2]
[311403349,1705077116957,-500.0,0.00025797,2]
[311403350,1705077116966,-443.75,0.00025797,2]
[311403351,1705077116975,-486.3128173,0.00025797,2]
[311403352,1705077116986,-500.0,0.00025797,2]
[311403353,1705077116995,-500.0,0.00025797,2]
[311403354,1705077117005,-1107.53,0.00025797,2]
[311403355,1705077117014,-608.63,0.00025797,2]
[311403356,1705077117024,-546.20402734,0.00025797,2]
[311403357,1705077117034,-200.84924086,0.00025797,2]
[311403358,1705077117044,-224.30953459,0.00025797,2]
[311403359,1705077117054,-565.8,0.00025797,2]
[311403360,1705077117063,-500.0,0.00025797,2]
[311403361,1705077117073,-192.9952436,0.00025797,2]
[311403362,1705077117083,-523.56,0.00025797,2]
[311403363,1705077117093,-594.07,0.00025797,2]
[311403364,1705077117103,-1120.5,0.00025797,2]
[311403365,1705077117113,-571.6,0.00025797,2]
[311403366,1705077117122,-500.0,0.00025797,2]
[311403367,1705077117132,-500.0,0.00025797,2]
[311403368,1705077117142,-500.0,0.00025797,2]
[311403369,1705077117152,-992.52,0.00025797,2]
[311403370,1705077117162,-605.97,0.00025797,2]
[311403371,1705077117172,-1474.92,0.00025797,2]
[311403372,1705077117181,-4177.28,0.00025797,2]
[311403373,1705077117191,-1872.87,0.00025797,2]
[311403374,1705077117201,-500.0,0.00025797,2]
[311403375,1705077117210,-10644.17,0.00025797,2]
[311403376,1705077117220,-1357.01,0.00025797,2]
[311403377,1705077117230,-500.0,0.00025797,2]
[311403378,1705077117243,-150.0,0.00025797,2]
[311403379,1705077117253,-500.0,0.00025797,2]
[311403380,1705077117262,-550.51720244,0.00025797,2]
[311403381,1705077117271,-4961.7,0.00025797,2]
[311403382,1705077117280,-933.63,0.00025797,2]
[311403383,1705077117289,-500.0,0.00025797,2]
[311403384,1705077117298,-636.31,0.00025797,2]
[311403385,1705077117307,-500.0,0.00025797,2]
[311403386,1705077117317,-207.16864366,0.00025797,2]
[311403387,1705077117325,-1195.27,0.00025797,2]
[311403388,1705077117335,-1808.5,0.00025797,2]
[311403389,1705077117344,-1852.8,0.00025797,2]
[311403390,1705077117353,-3071.92,0.00025797,2]
[311403391,1705077117363,-2545.58,0.00025797,2]
[311403392,1705077117372,-500.0,0.00025797,2]
[311403393,1705077117382,-500.0,0.00025797,2]
[311403394,1705077117391,-2126.07,0.00025797,2]
[311403395,1705077117400,-188.49404043,0.00025797,2]
[311403396,1705077117410,-877.7,0.00025797,2]
[311403397,1705077117419,-1558.28,0.00025797,2]
[311403398,1705077117428,-3767.3,0.00025797,2]
[311403399,1705077117438,-1845.89,0.00025797,2]
[311403400,1705077117447,-669.67,0.00025797,2]
[311403401,1705077117457,-2228.6,0.00025797,2]
[311403402,1705077117467,-500.0,0.00025797,2]
[311403403,1705077117476,-846.0,0.00025797,2]
[311403404,1705077117486,-2416.09,0.00025797,2]
[311403405,1705077117495,-13698.75,0.00025797,2]
[311403406,1705077117504,-1205.25,0.00025797,2]
[311403407,1705077117514,-3731.97,0.00025797,2]
[311403408,1705077117524,-500.0,0.00025797,2]
[311403409,1705077117533,-812.57,0.00025797,2]
[311403410,1705077117543,-500.0,0.00025797,2]
[311403411,1705077117552,-2269.52,0.00025797,2]
[311403412,1705077117562,-500.0,0.00025797,2]
[311403413,1705077117571,-1615.37,0.00025797,2]
[311403414,1705077117581,-500.0,0.00025797,2]
[311403415,1705077117591,-946.07,0.00025797,2]
[311403416,1705077117600,-500.0,0.00025797,2]
[311403417,1705077117610,-636.34,0.00025797,2]
[311403418,1705077117620,-500.0,0.00025797,2]
[311403419,1705077117630,-656.56,0.00025797,2]
[311403420,1705077117639,-500.0,0.00025798,2]
[311403421,1705077117648,-500.0,0.00025798,2]
[311403422,1705077117657,-528.99027367,0.00025798,2]